Cogmind - Beta 14 @@@ ROGUE MODE // 2024.08.25 @ 22:34:10 Player: Mallow Result: Destroyed by 00-9AZ(R) with Subdweller Laser Performance ------------- Evolutions (0) 0 Regions Visited (3) 600 Robots Destroyed (28) 140 Value Destroyed (848) 848 Prototype IDs (0) 0 Alien Tech Used (0) 0 Bonus (0) 0 TOTAL SCORE: 1588 Bonus ------- None Cogmind --------- Core Integrity 0/250 Matter 81/300 Energy 100/100 System Corruption 0% Temperature Cool (6) Movement Core (50) Location -10/Subcaves Parts ------- > --- POWER (1) -------- (None) > --- PROPULSION (2) --- (None) > --- UTILITY (2) ------ (None) > --- WEAPON (2) ------- (None) > --- INVENTORY (5) ---- Ion Engine Subdweller Power Source Subdweller Power Source Subdweller Optics Peak State ------------ > --- POWER ------------ Ion Engine > --- PROPULSION ------- Light Treads Spiked Treads > --- UTILITY ---------- Small Storage Unit Makeshift Light Armor Plating > --- WEAPON ----------- Light Assault Rifle Grenade Launcher > --- INVENTORY -------- Subdweller Power Source Subdweller Optics Small Laser Subdweller Shrapnel Launcher Scrap Shield Fragment Scrap Shield Fragment [Rating: 12] Favorites ----------- Power Ion Engine Engine Ion Engine Propulsion Light Treads Treads Light Treads Utility Small Storage Unit Storage Small Storage Unit Processor Targeting Computer Protection Makeshift Light Armor Plating Weapon Light Assault Rifle Energy Gun Small Laser Ballistic Gun Light Assault Rifle Launcher Grenade Launcher Build | -11 -10 -10 -10 ------- Run | Yrd Mat Min Sub Slots Evolved . | . . . . Power . | . . . . Propulsion . | . . . . Utility . | . . . . Weapon . | . . . . Parts Attached 18 | 6 2 1 9 Power 2 | 1 . . 1 Engine 2 | 1 . . 1 Core . | . . . . Reactor . | . . . . Propulsion 3 | 2 . . 1 Treads 3 | 2 . . 1 Leg . | . . . . Wheel . | . . . . Hover . | . . . . Flight . | . . . . Utility 4 | 1 1 . 2 Device . | . . . . Storage 1 | 1 . . . Processor 1 | . 1 . . Hackware . | . . . . Protection 2 | . . . 2 Artifact . | . . . . Weapon 9 | 2 1 1 5 Energy Gun 2 | 1 . . 1 Energy Cannon . | . . . . Ballistic Gun 2 | 1 . . 1 Ballistic Cannon . | . . . . Launcher 5 | . 1 1 3 Special Weapon . | . . . . Impact Weapon . | . . . . Slashing Weapon . | . . . . Piercing Weapon . | . . . . Special Melee Weapon . | . . . . Unidentified Prototypes . | . . . . Parts Lost 7 | . . . 7 Power 1 | . . . 1 Propulsion 2 | . . . 2 Utility . | . . . . Weapon 4 | . . . 4 Highest Loss Streak 5 | . . . 5 To Critical Strikes . | . . . . Average Slot Usage (%) 98 | . 87 100 99 Engine 13 | . 14 14 13 Treads 27 | . 28 28 27 Storage 13 | . 14 14 13 Processor 6 | . 2 14 5 Protection 6 | . . . 8 Ballistic Gun 13 | . 14 14 13 Launcher 13 | . 11 14 13 Peak Build Rating 12 | 6 7 8 12 Average Rating 9 | 5 6 7 10 On Entrance 5 | . 6 7 8 Naked Turns 7 | . . . 7 Heaviest Build 23 | 12 14 15 23 Greatest Support 40 | 40 40 40 40 Greatest Overweight (x) 6 | . . . 6 Average Overweight (x) . | . . . . Largest Inventory Capacity 8 | 8 8 8 8 Average Capacity 7 | 7 8 8 7 Most Carried 8 | 5 4 4 8 Average Carried 3 | 1 2 3 3 Final Capacity 8 | 8 8 8 5 Final Carried 4 | 1 3 3 4 Class Distribution -------------------- 100% | Mutant Dominant Class ---------------- Mutant | -10/Materials Mutant | -10/Mines Mutant | -10/Subcaves Resources | -11 -10 -10 -10 ----------- Run | Yrd Mat Min Sub Matter Collected 717 | 266 96 58 297 Remotely . | . . . . Salvage Created 741 | 55 224 114 348 Parts 56 | . 15 10 31 Haulers Intercepted . | . . . . Recyclers Shooed . | . . . . Parts Field Recycled . | . . . . Retrieved Matter . | . . . . Parts Self-Destructed 3 | . . . 3 Prevented . | . . . . Kills | -11 -10 -10 -10 ------- Run | Yrd Mat Min Sub Combat Hostiles Destroyed 25 | . 8 5 12 Guns 1 | . . . 1 AOE 24 | . 8 5 11 Classes Destroyed 6 | 1 2 1 2 Tunneler 1 | . . 1 . Recycler 2 | 1 1 . . Swarmer 6 | . 3 3 . Grunt 7 | . 5 2 . Sentry 1 | . . . 1 Subdweller 11 | . . . 11 Best Kill Streak 4 | 1 4 3 2 Combat Bots Only 3 | . 3 3 2 Max Kills in Single Turn 3 | 1 3 3 1 Gunslinging . | . . . . Exploded 3 | . 3 3 1 Melee . | . . . . Uniques/NPCs Destroyed . | . . . . Combat | -11 -10 -10 -10 -------- Run | Yrd Mat Min Sub Hostile Shots Fired 83 | . 18 6 59 Missed 28 | . 10 2 16 Damage Taken 1490 | . 145 101 1244 Core 267 | . 39 19 209 Absorbed by Shields . | . . . . Core Remaining (%) 100 | 100 . . . Volleys Fired 65 | 6 11 8 40 Largest 2 | 2 2 2 2 Hottest 70 | 60 60 50 70 Shots Fired 112 | 12 22 15 63 Gun 60 | 12 13 7 28 Cannon . | . . . . Launcher 52 | . 9 8 35 Special . | . . . . Kinetic 50 | 6 11 7 26 Thermal 13 | 6 2 . 5 Explosive 49 | . 9 8 32 Electromagnetic . | . . . . Robot Hit Streak 9 | 2 4 4 9 Robot Miss Streak 3 | 3 3 1 2 Penetration Max . | . . . . Secondary Targets . | . . . . Shots Hit Robots 66 | 3 11 10 42 Core Hits 53 | 3 16 10 24 Critical Kills . | . . . . Critical Parts Destroyed . | . . . . Critical Strikes . | . . . . Melee Attacks . | . . . . Impact . | . . . . Slashing . | . . . . Piercing . | . . . . Sneak Attacks . | . . . . Combat Hostiles . | . . . . Follow-up Attacks . | . . . . Damage Inflicted 2430 | 25 485 344 1576 Guns 314 | 25 38 36 215 Cannons . | . . . . Explosions 2096 | . 445 290 1361 Melee . | . . . . Ramming 20 | . 2 18 . Kinetic 617 | 14 38 36 529 Thermal 55 | 11 . . 44 Explosive 1738 | . 445 290 1003 Electromagnetic . | . . . . Impact . | . . . . Slashing . | . . . . Piercing . | . . . . Highest Corruption . | . . . . Average Corruption . | . . . . Corruption Purged . | . . . . Corruption Blocked . | . . . . Overload Shots . | . . . . Overflow Damage 28 | . 1 . 27 Projectiles . | . . . . Explosions 28 | . 1 . 27 Melee . | . . . . Knockbacks . | . . . . Impact . | . . . . Kinetic . | . . . . Secondary . | . . . . Self-Inflicted Damage 463 | . 61 53 349 Shots 19 | . 3 3 13 Rammed 8 | . 2 6 . Targets Rammed 8 | . 2 6 . Kicked . | . . . . Crushed . | . . . . Highest Temperature 32 | 20 32 20 . Average Temperature 13 | 15 13 10 . Received Heat Transfer 240 | . 39 27 174 Siege Activations . | . . . . Robots Corrupted . | . . . . Combat Hostiles . | . . . . Parts Fried . | . . . . Impact Corruptions . | . . . . Robots Melted . | . . . . Combat Hostiles . | . . . . Parts Melted . | . . . . Heat Transferred 125 | 25 . . 100 Parts Sabotaged . | . . . . Parts Stolen . | . . . . Parts Stripped . | . . . . Power Chain Reactions . | . . . . Alert | -11 -10 -10 -10 ------- Run | Yrd Mat Min Sub Peak Influence 306 | 5 306 276 . Initial 118 | . 3 118 . Average 119 | 1 107 156 . Maximum Alert Level 1 | . 1 1 . Low Security (%) 88 | 100 71 94 . Level 1 11 | . 28 5 . Level 2 . | . . . . Level 3 . | . . . . Level 4 . | . . . . Level 5 . | . . . . High Security . | . . . . Max Security . | . . . . Squads Dispatched 1 | . 1 . . Investigation 1 | . 1 . . Extermination . | . . . . Reinforcement . | . . . . Assault . | . . . . Garrison . | . . . . Intercept . | . . . . Searches Triggered . | . . . . Construction Impeded . | . . . . Haulers Reinforced . | . . . . Active Scanning Responses . | . . . . Cargo Convoy Interrupts . | . . . . Stealth | -11 -10 -10 -10 --------- Run | Yrd Mat Min Sub Distress Signals 1 | . 1 . . Communications Jammed . | . . . . Distress Signals . | . . . . Times Spotted 31 | . 13 4 14 Peak Tracking Total 5 | . 5 3 3 Tactical Retreats . | . . . . Traps | -11 -10 -10 -10 ------- Run | Yrd Mat Min Sub Traps Triggered . | . . . . Indirectly . | . . . . Trap Hack Attempts . | . . . . Triggered . | . . . . Disarmed . | . . . . Reprogrammed . | . . . . Reused . | . . . . Traps Extracted . | . . . . Installed . | . . . . Triggered 2 | . . . 2 Machines | -11 -10 -10 -10 ---------- Run | Yrd Mat Min Sub Machines Disabled 2 | . 2 . . Max in Single Turn 1 | . 1 . . Machines Repaired . | . . . . Machines Dismantled . | . . . . Machines Sabotaged . | . . . . Overloaded Fab Kills . | . . . . Hacking | -11 -10 -10 -10 --------- Run | Yrd Mat Min Sub Machines Accessed 3 | . 2 . 1 Terminals 2 | . 2 . . Fabricators . | . . . . Repair Stations . | . . . . Recycling Units . | . . . . Scanalyzers . | . . . . Garrison Access . | . . . . Total Hacks 9 | . 4 . 5 Successful 6 | . 1 . 5 Failed 3 | . 3 . . Catastrophic 2 | . 2 . . Database Lockouts . | . . . . Manual . | . . . . Terminals 4 | . 4 . . Fabricators . | . . . . Repair Stations . | . . . . Recycling Units . | . . . . Scanalyzers . | . . . . Garrison Access . | . . . . Terminal Hacks 6 | . 1 . 5 Record 5 | . . . 5 Locate Traps 1 | . 1 . . Fabricator Hacks . | . . . . Repair Station Hacks . | . . . . Recycling Unit Hacks . | . . . . Scanalyzer . | . . . . Garrison Access Hacks . | . . . . Unauthorized Hacks . | . . . . Terminals . | . . . . Fabricators . | . . . . Repair Stations . | . . . . Recycling Units . | . . . . Scanalyzers . | . . . . Garrison Access . | . . . . Data Cores Recovered . | . . . . Used . | . . . . Hacking Detections 2 | . 2 . . Full Trace Events 1 | . 1 . . Feedback Events . | . . . . Feedback Blocked . | . . . . Robot Schematics Acquired . | . . . . Robots Built . | . . . . Authchips . | . . . . Time . | . . . . Total Robot Build Rating . | . . . . Part Schematics Acquired . | . . . . Parts Built . | . . . . Authchips . | . . . . Time . | . . . . Total Part Build Rating . | . . . . Parts Repaired . | . . . . Time . | . . . . Parts Recycled . | . . . . Recycled Matter . | . . . . Retrieved Matter . | . . . . Retrieved Components . | . . . . Parts Scanalyzed . | . . . . Part Schematics Acquired . | . . . . Parts Damaged . | . . . . Bothacking | -11 -10 -10 -10 ------------ Run | Yrd Mat Min Sub Used RIF Installer . | . . . . Robots Hacked . | . . . . Non-combat . | . . . . Combat . | . . . . Robot Hacks Applied . | . . . . Relay Couplers Released . | . . . . Fabnet Peak Effective % . | . . . . Robots Rewired . | . . . . Allies Hacked . | . . . . Hacks Repelled . | . . . . Allies | -11 -10 -10 -10 -------- Run | Yrd Mat Min Sub Total Allies . | . . . . Largest Group . | . . . . Highest-Rated Group . | . . . . Highest-Rated Ally . | . . . . Total Orders . | . . . . Ally Attacks . | . . . . Total Damage . | . . . . Kills . | . . . . Allies Corrupted . | . . . . Allies Melted . | . . . . Intel | -11 -10 -10 -10 ------- Run | Yrd Mat Min Sub Robot Analysis Total . | . . . . Derelict Logs Recovered 5 | . . 3 2 Drone Launches . | . . . . Drone Recoveries . | . . . . Exploration | -11 -10 -10 -10 ------------- Run | Yrd Mat Min Sub Turns Passed 3003 | 139 296 529 2039 Spaces Moved 1743 | 80 161 308 1194 Core 29 | 16 . . 13 Treads 1714 | 64 161 308 1181 Legs . | . . . . Wheels . | . . . . Hover . | . . . . Flight . | . . . . Fastest Speed 50 | 50 160 160 50 Average Speed 158 | 138 160 160 159 Slowest Speed 350 | 160 160 160 350 Overloaded Moves . | . . . . Propulsion Burnouts . | . . . . Robots Hopped . | . . . . Cave-ins Triggered . | . . . . Exploration Rate (%) 43 | 6 35 67 67 Regions Visited 3 Branch Regions 2 Pre-discovered Areas 1 | . . 1 . Known Exits Taken 1 | . . 1 . Unknown Exits Taken 2 | 1 1 . . Scrap Searched . | . . . . Spaces Dug 23 | . 7 . 16 Terrain Destroyed 333 | . 44 65 224 Melee . | . . . . Projectile 1 | . . . 1 AOE 332 | . 44 65 223 Terrain Rammed . | . . . . Walls Destroyed . | . . . . Machines Disabled . | . . . . Actions | -11 -10 -10 -10 --------- Run | Yrd Mat Min Sub Total 1883 | 98 179 328 1278 Wait 15 | . . 4 11 Move 1740 | 79 160 307 1194 Hop . | . . . . Pick Up 22 | 7 3 1 11 Fast Attach . | . . . . Attach 18 | 6 2 1 9 Detach 5 | . 1 . 4 Swap . | . . . . Drop 10 | . . 1 9 Fire 65 | 6 11 8 40 Melee . | . . . . Ram . | . . . . Kick . | . . . . Crush 8 | . 2 6 . Escape Stasis . | . . . . Rewire . | . . . . Trap . | . . . . Miscellaneous . | . . . . Route ------- -11/Scrapyard -10/Materials (discovered 2 exits: [*Mat] / [*Min]) -10/Mines (discovered 3 exits: [*Mat x2] / *Sub) -10/Subcaves (discovered 1 exit: [*Mat]) History --------- Turn | Location | Event 3 | -11/Scrapyard | Discovered new exit (range 16) 140 | -11/Scrapyard | Entered Materials 258 | -10/Materials | Discovered new exit (range 16) 305 | -10/Materials | Build established: Mutant 370 | -10/Materials | Discovered new exit (range 15) 436 | -10/Materials | Entered Mines 437 | -10/Mines | Learned location of Storage (-9) 743 | -10/Mines | Learned location of 1 exit from Materials 786 | -10/Mines | Discovered new exit (range 11) 829 | -10/Mines | Received a Rocket Launcher from a helpful Derelict 847 | -10/Mines | Discovered new exit (range 14) 909 | -10/Mines | Learned Materials stockpile data 917 | -10/Mines | Identified exit to Subcaves 965 | -10/Mines | Entered Subcaves 1143 | -10/Subcaves | Discovered new exit (range 16) 1529 | -10/Subcaves | Shifting Twisted Machinery released Sub. Shrapnel Launcher 1541 | -10/Subcaves | Shifting Twisted Machinery released Sub. Monowheel 2005 | -10/Subcaves | Visited Clippyterm 2010 | -10/Subcaves | Learned Research security intel 2010 | -10/Subcaves | Learned Research machine intel 2075 | -10/Subcaves | Curiously followed by a Cobbler waking with a query about "LVR3C" 2242 | -10/Subcaves | Shifting Twisted Machinery released Shrapnel Trap 2252 | -10/Subcaves | Shifting Twisted Machinery released Sub. Monowheel 2260 | -10/Subcaves | Learned 4 Materials zone layouts 2465 | -10/Subcaves | Core integrity fell below 50% 2965 | -10/Subcaves | Ambushed by Subdweller buried in earth 2968 | -10/Subcaves | Ambushed by Subdweller buried in earth 2975 | -10/Subcaves | Ambushed by Subdweller buried in earth 2992 | -10/Subcaves | Core integrity fell below 20% 3004 | -10/Subcaves | Destroyed by 00-9AZ(R) with Subdweller Laser Last Messages --------------- Sub. Machine Gun shoots sparks and powers down. Sub. Shrapnel Launcher destroyed. Destroyed Sub. Shrapnel Launcher. Subatomizers dissect the Sub. Power Source. The unstable cave ceiling collapses. RS-YA5(R) affixes Scrap Shield Fragment to Scrap Shield. The unstable cave ceiling collapses. Spk. Treads destroyed. The unstable cave ceiling collapses. Sub. Power Source crushed. The unstable cave ceiling collapses. Subatomizers dissect the Sub. Power Source. 00-9AZ(R) affixes Scrap Shield Fragment to Scrap Shield. Sml. Laser destroyed. Dropped Sml. Storage Unit. Dropped Mak. Light Armor Plating. Dropped Broken Sub. Machine Gun. The unstable cave ceiling collapses. Map ----- +----------------------------------------------------+ | ####????## ##???## # | | ###??????## ##?## ## "" ## | | #?????????# ### "##""" # # ## # #? | | #?????????## """"#"" ############? | | ##??????????## """### #??????????? | | #????????????# ## ##?#### ##??????????? | | ?????????????# ############?????####???????????? | | ?????????????#####???????????????????????????????? | | ?????????????????????????????????????????????????? | | ?????????????????????????????????????????????????? | | ?????????????????????????????????????????????????? | | ?????????????????????????????????????????????????? | | ?????????????????????????????????????????????????? | | ?????????????????????????????????????????????????? | | ?????????????????????????????????????????????????? | | ?????????????????????????????????????????????????? | | ?????????????????????????????????????????????????? | | ?????????????????????????????????????????????????? | | ?????????????????????????????????????????????????? | | ?????????????????????????????????????????????????? | | ?????????????????????##??????????????????????????? | | ?????????????????##### ########??????????????????? | | ????????????????##" ##"" ##?????????????????? | | ????????????????# " " # ##????????????????? | | ??????????????? "" " ###??????????????? | | ?????????????# " ##" @ #??????????????? | | ?????????????? ??? ??# ##?????????????? | | ?????????????????? ??## ! #?????????????? | | ?????????????????## ??## #RR ! ##?????????????? | | ?????????????????# ?###; ! # #??????????????? | | ??????????????????# ## [! # #??????????????? | | ??????????????????# # * #??????????????? | | ?????????????????##"" #?????????????? | | ###?????###??????# & = ; ###?????????????? | | ##???# ##?????## = [# # #???????????????? | | #??? ##????# # # #######???????????????? | | ##### #????### # ##?????????????????????? | | #? #??????## ##?????????????????????? | | #?# ##??????### #?????????????????????? | | ### #???????## #?????????????????????? | | ## #???????## ##?????????????????????? | | ## #???????# #??????????????????????? | | #?#####?#### ##?????????????????????? | | #??## ##???## ######????????????????? | | ##### ##???# ##???????????????? | | # #### #??## #???????????????? | | # ### #??## ## #???????????????? | | # ## #?### ##?# ##???????????????? | | ##### ### #???###????????????????? | | ????# ## ## ##??????????????????????? | +----------------------------------------------------+ Best States ------------- Heat Dissipation 25 Energy Generation 10 Energy Capacity 250 Matter Stores 300 Matter Capacity 300 Sight Range 16 Terrain Scan Density 10 Armor Coverage 100 Evasion (%) 50 Targeting Accuracy 5 Recoil Reduction 2 Item Schematics ----------------- None Robot Schematics ------------------ None Fabricated ------------ Nothing Alien Tech Used ----------------- None Achievements -------------- None Challenges ------------ None Game ------ Seed DeliveryTrapOptics Manual? 0 Play Time 00:17:08 Cumulative 14.2 hours Start 2024.08.25 @ 22:16:44 End 2024.08.25 @ 22:34:10 Sessions 1 Manual Loads 0 Difficulty Rogue Special Mode None Game No. 30 Rogue 30 Adventurer 0 Explorer 0 Win Type - Total 0 Types 0/0/0/0/0/0/0/0/0 Lore% 8 Gallery% 20 Achievement% 16 Wizard Run 0 Options --------- Layout 1 ASCII 0 Keyboard 0 Movement Arrows Keybinds 0 Fullscreen 1 Font 48/Smallcaps Map View 50x35 Zoom Use 54% Tactical HUD 0 Map Filters NONE Filters NONE Steam 1 RUN: 9f268013-a89a-48d8-a19d-601031d3b961